fUST/lending_fUST_20250623
["ID","MTS","AMOUNT","RATE_DAILY","PERIOD"]
[367051633,1750638333196,-300.0,0.00020914,2]
[367051634,1750638333219,-300.0,0.00020914,2]
[367051635,1750638333242,-300.0,0.00020914,2]
[367051636,1750638333267,-1200.0,0.00020914,2]
[367051637,1750638333290,-300.0,0.00020914,2]
[367051638,1750638333317,-300.0,0.00020914,2]
[367051639,1750638333341,-945.85320008,0.00020915,13]
[367051640,1750638333366,-586.11263362,0.00020916,2]
[367051641,1750638426080,-300.0,0.00020915,2]
[367051642,1750638426104,-300.0,0.00020915,2]
[367051643,1750638426126,-3898.62495544,0.00020916,2]
[367051644,1750638426157,-337.41366948,0.00020916,2]
[367051645,1750638436085,-2584.11156656,0.00020916,2]
[367051646,1750638451090,-2233.51622145,0.00020916,2]
[367051647,1750638452094,-548.76280588,0.00020916,2]
[367051669,1750638478678,150.0,0.000189,2]
[367051713,1750638537250,150.0,0.000189,2]
[367051714,1750638545090,-300.0,0.00020915,2]
[367051715,1750638545116,-14711.45814757,0.00020916,2]
[367051716,1750638545140,-164.72290119,0.00021632,2]
[367051717,1750638545165,-334.328,0.00021732,2]
[367051718,1750638545197,-1719.59952659,0.000219,6]
[367051719,1750638545221,-1935.72351399,0.00021906,2]
[367051720,1750638545244,-1301.12,0.00021907,3]
[367051721,1750638545268,-650.56,0.00021907,3]
[367051722,1750638545291,-325.28,0.00021907,3]
[367051723,1750638545314,-162.64,0.00021907,3]
[367051724,1750638545335,-487.97,0.00021907,3]
[367051725,1750638545357,-222.85,0.00021907,3]
[367051726,1750638545379,-2626.47,0.00021907,10]
[367051727,1750638545402,-2188.72,0.00021907,10]
[367051728,1750638545424,-500.0,0.00021916,2]
[367051729,1750638545445,-175.4542452,0.00021916,2]
[367051730,1750638545467,-500.0,0.00021916,2]
[367051731,1750638545488,-500.0,0.00021916,2]
[367051732,1750638545510,-500.0,0.00021916,2]
[367051733,1750638545532,-459.00650012,0.00021916,2]
[367051734,1750638545553,-600.0,0.00021916,2]
[367051735,1750638545574,-381.25947673,0.00021916,2]
[367051736,1750638545597,-500.0,0.00021916,2]
[367051737,1750638545618,-465.54782892,0.00021916,2]
[367051738,1750638545638,-200.0,0.00021916,2]
[367051739,1750638545662,-500.0,0.00021916,2]
[367051740,1750638545685,-339.84256728,0.00021916,2]
[367051741,1750638545706,-500.0,0.00021917,2]
[367051742,1750638545730,-1025.12,0.00021917,2]
[367051743,1750638545750,-460.0,0.00021917,2]
[367051744,1750638545771,-460.0,0.00021917,2]
[367051745,1750638545792,-460.0,0.00021917,2]
[367051746,1750638545814,-1000.0,0.00021917,2]
[367051747,1750638545834,-460.0,0.00021917,2]
[367051748,1750638545854,-460.0,0.00021917,2]
[367051749,1750638545874,-460.0,0.00021917,2]
[367051750,1750638545895,-460.0,0.00021917,2]
[367051751,1750638545916,-500.0,0.00021917,2]
[367051752,1750638545938,-460.0,0.00021917,2]
[367051753,1750638545961,-460.0,0.00021917,2]
[367051754,1750638545982,-839.43,0.00021917,2]
[367051755,1750638546003,-839.43,0.00021917,2]
[367051756,1750638546023,-839.43,0.00021917,2]
[367051757,1750638546044,-460.0,0.00021917,2]
[367051758,1750638546065,-460.0,0.00021917,2]
[367051759,1750638546086,-274.87394449,0.00021917,2]
[367051760,1750638546107,-460.0,0.00021917,2]
[367051761,1750638546128,-460.0,0.00021917,2]
[367051762,1750638546149,-460.0,0.00021917,2]
[367051763,1750638546169,-554.94,0.00021917,2]
[367051764,1750638546189,-460.0,0.00021917,2]
[367051765,1750638546210,-500.0,0.00021917,2]
[367051766,1750638546230,-460.0,0.00021917,2]
[367051767,1750638546261,-619.72,0.00021917,2]
[367051768,1750638546286,-460.0,0.00021917,2]
[367051769,1750638546308,-460.0,0.00021917,2]
[367051770,1750638546330,-460.0,0.00021917,2]
[367051771,1750638546352,-460.0,0.00021917,2]
[367051772,1750638546373,-460.0,0.00021917,2]
[367051773,1750638546396,-480.46248933,0.00021917,2]
[367051774,1750638546419,-443.46265963,0.00021917,2]
[367051775,1750638546441,-460.0,0.00021917,2]
[367051776,1750638546465,-460.0,0.00021917,2]
[367051777,1750638546487,-346.77288857,0.00021917,2]
[367051778,1750638546510,-460.0,0.00021917,2]
[367051779,1750638546533,-353.80887487,0.00021917,2]
[367051780,1750638546556,-460.0,0.00021917,2]
[367051781,1750638546579,-460.0,0.00021917,2]
[367051782,1750638546602,-460.0,0.00021917,2]
[367051783,1750638546624,-460.0,0.00021917,2]
[367051784,1750638546646,-460.0,0.00021917,2]
[367051785,1750638546668,-460.0,0.00021917,2]
[367051786,1750638546690,-460.0,0.00021917,2]
[367051787,1750638546714,-460.0,0.00021917,2]
[367051788,1750638546737,-460.0,0.00021917,2]
[367051789,1750638546758,-327.66373908,0.00021917,2]
[367051790,1750638546780,-407.05722298,0.00021917,2]
[367051791,1750638546802,-460.0,0.00021917,2]
[367051792,1750638546824,-460.0,0.00021917,2]
[367051793,1750638546845,-460.0,0.00021917,2]
[367051794,1750638546869,-460.0,0.00021917,2]
[367051795,1750638546892,-357.76452755,0.00021917,2]
[367051796,1750638546914,-460.0,0.00021917,2]
[367051797,1750638546934,-460.0,0.00021917,2]
[367051798,1750638546956,-460.0,0.00021917,2]
[367051799,1750638546978,-460.0,0.00021917,2]
[367051800,1750638546999,-400.0,0.00021917,2]
[367051801,1750638547020,-460.0,0.00021917,2]
[367051802,1750638547042,-460.0,0.00021917,2]
[367051803,1750638547064,-460.0,0.00021917,2]
[367051804,1750638547085,-460.0,0.00021917,2]
[367051805,1750638547106,-460.0,0.00021917,2]
[367051806,1750638547127,-460.0,0.00021917,2]
[367051807,1750638547148,-460.0,0.00021917,2]
[367051808,1750638547172,-460.0,0.00021917,2]
[367051809,1750638547194,-460.0,0.00021917,2]
[367051810,1750638547215,-460.49662872,0.00021917,2]
[367051811,1750638547238,-460.0,0.00021917,2]
[367051812,1750638547260,-460.0,0.00021917,2]
[367051813,1750638547282,-460.0,0.00021917,2]
[367051814,1750638547304,-460.0,0.00021917,2]
[367051815,1750638547326,-430.65324588,0.00021917,2]
[367051816,1750638547349,-555.7676786,0.00021917,2]
[367051817,1750638547370,-460.0,0.00021917,2]
[367051818,1750638547393,-460.0,0.00021917,2]
[367051819,1750638547414,-460.0,0.00021917,2]
[367051820,1750638547436,-435.61114273,0.00021917,2]
[367051821,1750638547459,-460.0,0.00021917,2]
[367051822,1750638547486,-460.0,0.00021917,2]
[367051823,1750638547510,-460.0,0.00021917,2]
[367051824,1750638547532,-460.0,0.00021917,2]
[367051825,1750638547555,-655.81,0.00021917,2]
[367051826,1750638547579,-460.0,0.00021917,2]
[367051827,1750638547602,-460.0,0.00021917,2]
[367051828,1750638547623,-460.0,0.00021917,2]
[367051829,1750638547645,-460.0,0.00021917,2]
[367051830,1750638547668,-460.0,0.00021917,2]
[367051831,1750638547689,-460.0,0.00021917,2]
[367051832,1750638547712,-460.0,0.00021917,2]
[367051833,1750638547738,-460.0,0.00021917,2]
[367051834,1750638547761,-460.0,0.00021917,2]
[367051835,1750638547783,-460.0,0.00021917,2]
[367051836,1750638547807,-460.0,0.00021917,2]
[367051837,1750638547828,-460.0,0.00021917,2]
[367051838,1750638547849,-460.0,0.00021917,2]
[367051839,1750638547871,-460.0,0.00021917,2]
[367051840,1750638547893,-456.77037317,0.00021917,2]
[367051841,1750638547914,-536.62,0.00021917,2]
[367051842,1750638547935,-460.0,0.00021917,2]
[367051843,1750638547957,-460.0,0.00021917,2]
[367051844,1750638547979,-460.0,0.00021917,2]
[367051845,1750638548000,-460.0,0.00021917,2]
[367051846,1750638548021,-460.0,0.00021917,2]
[367051847,1750638548044,-567.94,0.00021917,2]
[367051848,1750638548066,-563.01230618,0.00021917,2]
[367051849,1750638548088,-954.11,0.00021917,2]
[367051850,1750638548109,-460.0,0.00021917,2]
[367051851,1750638548131,-460.0,0.00021917,2]
[367051852,1750638548152,-460.0,0.00021917,2]
[367051853,1750638548172,-460.0,0.00021917,2]
[367051854,1750638548193,-460.0,0.00021917,2]
[367051855,1750638548215,-460.0,0.00021917,2]
[367051856,1750638548237,-465.33,0.00021917,2]
[367051857,1750638548258,-460.0,0.00021917,2]
[367051858,1750638548279,-642.19,0.00021917,2]
[367051859,1750638548302,-460.0,0.00021917,2]
[367051860,1750638548325,-460.0,0.00021917,2]
[367051861,1750638548345,-560.88,0.00021917,2]
[367051862,1750638548365,-1131.64,0.00021917,2]
[367051863,1750638548390,-460.0,0.00021917,2]
[367051864,1750638548411,-460.0,0.00021917,2]
[367051865,1750638548434,-460.0,0.00021917,2]
[367051866,1750638548455,-460.0,0.00021917,2]
[367051867,1750638548476,-460.0,0.00021917,2]
[367051868,1750638548497,-460.0,0.00021917,2]
[367051869,1750638548518,-460.0,0.00021917,2]
[367051870,1750638548542,-460.0,0.00021917,2]
[367051871,1750638548563,-460.0,0.00021917,2]
[367051872,1750638548584,-460.0,0.00021917,2]
[367051873,1750638548605,-675.06,0.00021917,2]
[367051874,1750638548626,-460.0,0.00021917,2]
[367051875,1750638548646,-460.0,0.00021917,2]
[367051876,1750638548667,-1099.32,0.00021917,2]
[367051877,1750638548687,-460.0,0.00021917,2]
[367051878,1750638548708,-460.0,0.00021917,2]
[367051879,1750638548732,-460.0,0.00021917,2]
[367051880,1750638548751,-460.0,0.00021917,2]
[367051881,1750638548773,-1675.14,0.00021917,2]
[367051882,1750638548794,-460.0,0.00021917,2]
[367051883,1750638548814,-1463.52,0.00021917,2]
[367051884,1750638548834,-460.0,0.00021917,2]
[367051885,1750638548853,-460.0,0.00021917,2]
[367051886,1750638549091,-460.0,0.00021917,2]
[367051887,1750638549112,-692.05,0.00021917,2]
[367051888,1750638549132,-460.0,0.00021917,2]
[367051889,1750638549151,-460.0,0.00021917,2]
[367051890,1750638549171,-460.0,0.00021917,2]
[367051891,1750638549191,-460.0,0.00021917,2]
[367051892,1750638549212,-505.30780488,0.00021917,2]
[367051893,1750638549232,-460.0,0.00021917,2]
[367051894,1750638549252,-461.0,0.00021917,2]
[367051895,1750638549271,-460.0,0.00021917,2]
[367051896,1750638549291,-712.13,0.00021917,2]
[367051897,1750638549310,-460.0,0.00021917,2]
[367051898,1750638549330,-460.0,0.00021917,2]
[367051899,1750638549350,-493.71797296,0.00021917,2]
[367051900,1750638549369,-460.0,0.00021917,2]
[367051901,1750638549388,-460.0,0.00021917,2]
[367051902,1750638549408,-248.34222261,0.00021917,2]
[367051906,1750638574072,-668.59,0.00021907,3]
[367051907,1750638574094,-1823.93,0.00021907,10]
[367051908,1750638574118,-1519.95,0.00021907,10]
[367051909,1750638574142,-201.62301679,0.00021916,2]
[367051910,1750638574164,-403.49777739,0.00021917,2]
[367051911,1750638574184,-566.0,0.00021917,2]
[367051912,1750638574206,-460.0,0.00021917,2]
[367051913,1750638574228,-460.0,0.00021917,2]
[367051914,1750638574250,-771.45,0.00021917,2]
[367051915,1750638574272,-542.86,0.00021917,2]
[367051916,1750638574294,-460.0,0.00021917,2]
[367051917,1750638574315,-460.0,0.00021917,2]
[367051918,1750638574337,-460.0,0.00021917,2]
[367051919,1750638574358,-460.0,0.00021917,2]
[367051920,1750638574380,-432.55960243,0.00021917,2]
[367051921,1750638574401,-460.0,0.00021917,2]
[367051922,1750638574422,-460.0,0.00021917,2]
[367051923,1750638574446,-1094.45,0.00021917,2]
[367051924,1750638574466,-460.0,0.00021917,2]
[367051925,1750638574486,-319.84777633,0.00021917,2]
[367051926,1750638574507,-460.0,0.00021917,2]
[367051927,1750638574528,-460.0,0.00021917,2]
[367051928,1750638574549,-489.0698376,0.00021917,2]
[367051929,1750638574571,-183.20674947,0.00021917,2]
[367051930,1750638574591,-460.0,0.00021917,2]
[367051931,1750638574611,-460.0,0.00021917,2]
[367051932,1750638574631,-460.0,0.00021917,2]
[367051933,1750638574651,-460.0,0.00021917,2]
[367051934,1750638574672,-1590.2,0.00021917,2]
[367051935,1750638574693,-460.0,0.00021917,2]
[367051936,1750638574713,-460.0,0.00021917,2]
[367051937,1750638574737,-460.0,0.00021917,2]
[367051938,1750638574757,-610.64,0.00021917,2]
[367051939,1750638574780,-460.0,0.00021917,2]
[367051940,1750638574802,-460.0,0.00021917,2]
[367051941,1750638574823,-698.88,0.00021917,2]
[367051942,1750638574844,-460.0,0.00021917,2]
[367051943,1750638574866,-460.0,0.00021917,2]
[367051944,1750638574886,-460.0,0.00021917,2]
[367051945,1750638574907,-1081.03,0.00021917,2]
[367051946,1750638574927,-1148.78,0.00021917,2]
[367051947,1750638574946,-460.0,0.00021917,2]
[367051948,1750638574966,-1200.79,0.00021917,2]
[367051949,1750638574987,-693.42,0.00021917,2]
[367051950,1750638575007,-444.01639997,0.00021917,2]
[367051951,1750638575030,-3999.65,0.00021917,2]
[367051952,1750638575051,-918.11,0.00021917,2]
[367051953,1750638575073,-820.25,0.00021917,2]
[367051954,1750638575094,-460.0,0.00021917,2]
[367051955,1750638575115,-460.0,0.00021917,2]
[367051956,1750638575136,-460.0,0.00021917,2]
[367051957,1750638575157,-460.0,0.00021917,2]
[367051958,1750638575177,-460.0,0.00021917,2]
[367051959,1750638575196,-460.0,0.00021917,2]
[367051960,1750638575216,-460.0,0.00021917,2]
[367051961,1750638575237,-460.0,0.00021917,2]
[367051962,1750638575256,-889.03,0.00021917,2]
[367051963,1750638575276,-460.0,0.00021917,2]
[367051964,1750638575296,-460.0,0.00021917,2]
[367051965,1750638575316,-1131.92,0.00021917,2]
[367051966,1750638575336,-460.0,0.00021917,2]
[367051967,1750638575355,-460.0,0.00021917,2]
[367051968,1750638575375,-286.94669072,0.00021917,2]
[367051969,1750638575396,-460.0,0.00021917,2]
[367051970,1750638575416,-460.0,0.00021917,2]
[367051971,1750638575436,-572.01,0.00021917,2]
[367051972,1750638575456,-379.54046247,0.00021917,2]
[367051973,1750638575476,-460.0,0.00021917,2]
[367051974,1750638575496,-460.0,0.00021917,2]
[367051975,1750638575516,-460.0,0.00021917,2]
[367051976,1750638575536,-460.0,0.00021917,2]
[367051977,1750638575561,-506.74,0.00021917,2]
[367051978,1750638575582,-460.0,0.00021917,2]
[367051979,1750638575602,-460.0,0.00021917,2]
[367051980,1750638575623,-854.01,0.00021917,2]
[367051981,1750638575644,-460.0,0.00021917,2]
[367051982,1750638575666,-460.0,0.00021917,2]
[367051983,1750638575687,-460.0,0.00021917,2]
[367051984,1750638575706,-460.0,0.00021917,2]
[367051985,1750638575728,-460.0,0.00021917,2]
[367051986,1750638575748,-460.0,0.00021917,2]
[367051987,1750638575769,-460.0,0.00021917,2]
[367051988,1750638575789,-1287.58,0.00021917,2]
[367051989,1750638575810,-460.0,0.00021917,2]
[367051990,1750638575830,-460.0,0.00021917,2]
[367051991,1750638575851,-514.44135775,0.00021917,2]
[367051992,1750638575871,-460.0,0.00021917,2]
[367051993,1750638575893,-460.0,0.00021917,2]
[367051994,1750638575913,-2533.93,0.00021917,2]
[367051995,1750638575936,-460.0,0.00021917,2]
[367051996,1750638575959,-460.0,0.00021917,2]
[367051997,1750638575979,-460.0,0.00021917,2]
[367051998,1750638575999,-460.0,0.00021917,2]
[367051999,1750638576019,-460.0,0.00021917,2]
[367052000,1750638576040,-460.0,0.00021917,2]
[367052001,1750638576062,-460.0,0.00021917,2]
[367052002,1750638576085,-460.0,0.00021917,2]
[367052003,1750638576117,-917.6,0.00021917,2]
[367052004,1750638576141,-460.0,0.00021917,2]
[367052005,1750638576164,-460.0,0.00021917,2]
[367052006,1750638576185,-460.0,0.00021917,2]
[367052007,1750638576208,-1000.0,0.00021917,2]
[367052008,1750638576235,-460.0,0.00021917,2]
[367052009,1750638576258,-1704.99,0.00021917,2]
[367052010,1750638576281,-304.56574475,0.00021917,2]
[367052011,1750638576304,-460.0,0.00021917,2]
[367052012,1750638576326,-460.0,0.00021917,2]
[367052013,1750638576348,-460.0,0.00021917,2]
[367052014,1750638576372,-531.98,0.00021917,2]
[367052015,1750638576394,-460.0,0.00021917,2]
[367052016,1750638576417,-320.51449009,0.00021917,2]
[367052017,1750638576439,-460.0,0.00021917,2]
[367052018,1750638576462,-460.0,0.00021917,2]
[367052019,1750638576484,-460.0,0.00021917,2]
[367052020,1750638576506,-460.0,0.00021917,2]
[367052021,1750638576527,-460.0,0.00021917,2]
[367052022,1750638576549,-437.34639577,0.00021917,2]
[367052023,1750638576571,-358.04850064,0.00021917,2]
[367052024,1750638576594,-460.0,0.00021917,2]
[367052025,1750638576617,-460.0,0.00021917,2]
[367052026,1750638576641,-460.0,0.00021917,2]
[367052027,1750638576663,-460.0,0.00021917,2]
[367052028,1750638576685,-460.0,0.00021917,2]
[367052029,1750638576707,-460.0,0.00021917,2]
[367052030,1750638576733,-367.02302055,0.00021917,2]
[367052031,1750638576756,-2609.62,0.00021917,2]
[367052032,1750638576780,-1515.28,0.00021917,2]
[367052033,1750638576801,-971.32,0.00021917,2]
[367052034,1750638576823,-1438.29,0.00021917,2]
[367052035,1750638576844,-524.63574279,0.00021917,2]
[367052036,1750638576867,-460.0,0.00021917,2]
[367052037,1750638576889,-460.0,0.00021917,2]
[367052038,1750638576912,-460.0,0.00021917,2]
[367052039,1750638576934,-460.0,0.00021917,2]
[367052040,1750638576958,-460.0,0.00021917,2]
[367052041,1750638576980,-460.0,0.00021917,2]
[367052042,1750638577003,-837.32,0.00021917,2]
[367052043,1750638577026,-460.0,0.00021917,2]
[367052044,1750638577050,-460.0,0.00021917,2]
[367052045,1750638577073,-460.0,0.00021917,2]
[367052046,1750638577094,-542.32,0.00021917,2]
[367052047,1750638577115,-460.0,0.00021917,2]
[367052048,1750638577135,-460.0,0.00021917,2]
[367052049,1750638577156,-460.0,0.00021917,2]
[367052050,1750638577178,-460.0,0.00021917,2]
[367052051,1750638577199,-460.0,0.00021917,2]
[367052052,1750638577221,-5988.74,0.00021917,2]
[367052053,1750638577244,-460.0,0.00021917,2]
[367052054,1750638577266,-948.11,0.00021917,2]
[367052055,1750638577286,-747.79,0.00021917,2]
[367052056,1750638577307,-460.0,0.00021917,2]
[367052057,1750638577328,-460.0,0.00021917,2]
[367052058,1750638577349,-460.0,0.00021917,2]
[367052059,1750638577370,-3267.97,0.00021917,2]
[367052060,1750638577392,-742.54,0.00021917,2]
[367052061,1750638577413,-460.0,0.00021917,2]
[367052062,1750638577434,-460.0,0.00021917,2]
[367052063,1750638577455,-460.0,0.00021917,2]
[367052064,1750638577476,-2398.76,0.00021917,2]
[367052065,1750638577499,-477.65,0.00021917,2]
[367052066,1750638577519,-460.0,0.00021917,2]
[367052067,1750638577541,-3129.56,0.00021917,2]
[367052068,1750638577782,-1619.39,0.00021917,2]
[367052069,1750638577805,-1736.46,0.00021917,2]
[367052070,1750638577826,-521.58,0.00021917,2]
[367052071,1750638577848,-460.0,0.00021917,2]
[367052072,1750638577868,-604.59,0.00021917,2]
[367052073,1750638577891,-460.0,0.00021917,2]
[367052074,1750638577913,-428.45006287,0.00021917,2]
[367052075,1750638577938,-460.0,0.00021917,2]
[367052076,1750638577959,-554.14,0.00021917,2]
[367052077,1750638577980,-153.67383046,0.00021917,2]
[367052078,1750638578000,-460.0,0.00021917,2]
[367052079,1750638578022,-1364.62,0.00021917,2]
[367052080,1750638578043,-460.0,0.00021917,2]
[367052081,1750638578064,-3124.38,0.00021917,2]
[367052082,1750638578085,-460.0,0.00021917,2]
[367052083,1750638578107,-724.19,0.00021917,2]
[367052084,1750638578128,-960.82,0.00021917,2]
[367052085,1750638578148,-553.11,0.00021917,2]
[367052086,1750638578169,-460.0,0.00021917,2]
[367052087,1750638578189,-640.77,0.00021917,2]
[367052088,1750638578210,-460.0,0.00021917,2]
[367052089,1750638578234,-9054.81,0.00021917,2]
[367052090,1750638578254,-460.0,0.00021917,2]
[367052091,1750638578279,-460.0,0.00021917,2]
[367052092,1750638578301,-498.0,0.00021917,2]
[367052093,1750638578323,-460.0,0.00021917,2]
[367052094,1750638578346,-460.0,0.00021917,2]
[367052095,1750638578369,-460.0,0.00021917,2]
[367052096,1750638578391,-460.0,0.00021917,2]
[367052097,1750638578413,-460.0,0.00021917,2]
[367052098,1750638578438,-5189.08,0.00021917,2]
[367052099,1750638578462,-300.0,0.00021917,2]
[367052100,1750638578489,-696.57,0.00021917,2]
[367052101,1750638578512,-460.0,0.00021917,2]
[367052102,1750638578534,-460.0,0.00021917,2]
[367052103,1750638578559,-460.0,0.00021917,2]
[367052104,1750638578581,-1577.58,0.00021917,2]
[367052105,1750638578604,-2361.2,0.00021917,2]
[367052106,1750638578627,-814.08,0.00021917,2]
[367052107,1750638578649,-460.0,0.00021917,2]
[367052108,1750638578670,-460.0,0.00021917,2]
[367052109,1750638578692,-541.7,0.00021917,2]
[367052110,1750638578714,-460.0,0.00021917,2]
[367052111,1750638578740,-434.15190711,0.00021917,2]
[367052112,1750638578761,-460.0,0.00021917,2]
[367052113,1750638578784,-460.0,0.00021917,2]
[367052114,1750638578807,-503.16,0.00021917,2]
[367052115,1750638578828,-460.0,0.00021917,2]
[367052116,1750638578853,-3001.79,0.00021917,2]
[367052117,1750638578876,-460.0,0.00021917,2]
[367052118,1750638578900,-460.0,0.00021917,2]
[367052119,1750638578921,-460.0,0.00021917,2]
[367052120,1750638578943,-460.0,0.00021917,2]
[367052121,1750638578964,-1261.66,0.00021917,2]
[367052122,1750638578985,-460.0,0.00021917,2]
[367052123,1750638579006,-460.0,0.00021917,2]
[367052124,1750638579027,-6482.55,0.00021917,2]
[367052125,1750638579047,-500.0,0.00021917,2]
[367052126,1750638579068,-2018.71,0.00021917,2]
[367052127,1750638579089,-460.0,0.00021917,2]
[367052128,1750638579110,-460.0,0.00021917,2]
[367052129,1750638579131,-460.0,0.00021917,2]
[367052130,1750638579151,-434.06903922,0.00021917,2]
[367052131,1750638579172,-460.0,0.00021917,2]
[367052132,1750638579193,-1281.64,0.00021917,2]
[367052133,1750638579214,-460.0,0.00021917,2]
[367052134,1750638579238,-644.37,0.00021917,2]
[367052135,1750638579259,-460.0,0.00021917,2]
[367052136,1750638579280,-889.12,0.00021917,2]
[367052137,1750638579304,-460.0,0.00021917,2]
[367052138,1750638579326,-460.0,0.00021917,2]
[367052139,1750638579349,-460.0,0.00021917,2]
[367052140,1750638579370,-500.0,0.00021917,2]
[367052141,1750638579393,-476.06,0.00021917,2]
[367052142,1750638579414,-460.0,0.00021917,2]
[367052143,1750638579434,-802.53,0.00021917,2]
[367052144,1750638579455,-437.46620615,0.00021917,2]
[367052145,1750638579477,-475.31,0.00021917,2]
[367052146,1750638579501,-1399.87,0.00021917,2]
[367052147,1750638579523,-460.0,0.00021917,2]
[367052148,1750638579544,-886.91,0.00021917,2]
[367052149,1750638579565,-2666.6,0.00021917,2]
[367052150,1750638579586,-462.08206364,0.00021917,2]
[367052151,1750638579609,-460.0,0.00021917,2]
[367052152,1750638579630,-460.0,0.00021917,2]
[367052153,1750638579651,-460.0,0.00021917,2]
[367052154,1750638579672,-460.0,0.00021917,2]
[367052155,1750638579692,-460.0,0.00021917,2]
[367052156,1750638579715,-700.77,0.00021917,2]
[367052157,1750638579739,-460.0,0.00021917,2]
[367052158,1750638579762,-5239.0,0.00021917,2]
[367052159,1750638579783,-196.40042402,0.00021917,2]
[367052160,1750638579804,-460.0,0.00021917,2]
[367052161,1750638579824,-460.0,0.00021917,2]
[367052162,1750638579844,-676.48,0.00021917,2]
[367052163,1750638579865,-460.0,0.00021917,2]
[367052164,1750638579885,-460.0,0.00021917,2]
[367052165,1750638579906,-460.0,0.00021917,2]
[367052166,1750638579928,-460.0,0.00021917,2]
[367052167,1750638579951,-460.0,0.00021917,2]
[367052168,1750638579973,-794.07,0.00021917,2]
[367052169,1750638579996,-1562.8,0.00021917,2]
[367052170,1750638580018,-478.17021496,0.00021917,2]
[367052171,1750638580039,-460.0,0.00021917,2]
[367052172,1750638580061,-525.58,0.00021917,2]
[367052173,1750638580081,-489.47,0.00021917,2]
[367052174,1750638580106,-460.0,0.00021917,2]
[367052175,1750638580127,-7046.84,0.00021917,2]
[367052176,1750638580148,-460.0,0.00021917,2]
[367052177,1750638580169,-460.0,0.00021917,2]
[367052178,1750638580190,-460.0,0.00021917,2]
[367052179,1750638580211,-460.0,0.00021917,2]
[367052180,1750638580232,-460.0,0.00021917,2]
[367052181,1750638580257,-4727.86,0.00021917,2]
[367052182,1750638580278,-460.0,0.00021917,2]
[367052183,1750638580302,-1763.9,0.00021917,2]
[367052184,1750638580325,-460.0,0.00021917,2]
[367052185,1750638580348,-447.00879276,0.00021917,2]
[367052186,1750638580370,-1254.06,0.00021917,2]
[367052187,1750638580393,-627.57,0.00021917,2]
[367052188,1750638580415,-1051.22,0.00021917,2]
[367052189,1750638580436,-500.0,0.00021917,2]
[367052190,1750638580459,-921.21,0.00021917,2]
[367052191,1750638580480,-460.0,0.00021917,2]
[367052192,1750638580503,-3899.38,0.00021917,2]
[367052193,1750638580524,-460.0,0.00021917,2]
[367052194,1750638580546,-567.25,0.00021917,2]
[367052195,1750638580567,-443.42320512,0.00021917,2]
[367052196,1750638580589,-1137.99,0.00021917,2]
[367052197,1750638580611,-945.45,0.00021917,2]
[367052198,1750638580632,-460.0,0.00021917,2]
[367052199,1750638580653,-460.0,0.00021917,2]